bitfinex/quotes_ETHUSD_20250220
["timestamp","ask_amount","ask_price","bid_price","bid_amount"]
[1740067524572,3.68344,2714.9,2714.4,3.0]
[1740067524758,3.68344,2714.9,2714.4,6.68404]
[1740067524966,0.8131,2715.3,2714.3,0.72082371]
[1740067525166,0.8131,2715.3,2714.4,6.68392]
[1740067525167,3.68331,2715.0,2714.4,6.68392]
[1740067525385,0.8131,2715.3,2714.7,0.7744]
[1740067525691,0.0075,2715.6,2714.7,0.7744]
[1740067525692,3.68998,2715.6,2714.7,0.7744]
[1740067525893,3.68263,2715.5,2714.9,3.68328]
[1740067526285,3.6827,2715.4,2714.9,3.68328]
[1740067526663,3.69,2715.6,2715.0,3.68322]
[1740067526868,3.69,2715.6,2714.7,0.7744]
[1740067526869,4.418471,2715.9,2715.2,3.68296]
[1740067527073,0.0075,2716.3,2715.0,0.8023]
[1740067527301,3.68214,2715.9,2715.4,3.68265]
[1740067527603,3.6817,2716.2,2715.0,0.8023]
[1740067527775,3.6817,2716.2,2715.6,4.47872]
[1740067527973,3.68196,2716.0,2715.6,0.7964]
[1740067528188,3.68167,2716.2,2715.6,0.7964]
[1740067528506,3.68161,2716.2,2715.7,3.6822]
[1740067528717,3.68161,2716.2,2715.6,0.7964]
[1740067528887,3.68161,2716.2,2715.6,4.47882]
[1740067529097,3.68161,2716.2,2715.6,4.47874]
[1740067529593,3.68202,2715.9,2715.2,7.40823286]
[1740067529797,0.368911,2716.2,2715.2,0.72532286]
[1740067529798,3.68263,2715.5,2715.2,0.72532286]
[1740067529995,3.68261,2715.5,2715.2,0.72532286]
[1740067530412,3.68249,2715.6,2715.2,0.72532286]
[1740067530708,3.6827,2715.4,2715.0,0.7843]
[1740067530918,3.68283,2715.3,2715.0,0.7843]
[1740067531116,3.68313,2715.1,2714.7,0.7843]
[1740067531280,3.68345,2714.9,2714.7,0.7843]
[1740067531479,3.68318,2715.1,2714.7,0.7843]
[1740067531700,0.0075,2715.5,2714.7,0.7843]
[1740067531899,3.68276,2715.4,2714.8,3.68345]
[1740067532112,0.778,2715.8,2714.8,7.130175]
[1740067532419,3.68249,2715.6,2715.1,3.68302]
[1740067532834,3.68197,2716.0,2715.4,3.68259]
[1740067532995,0.0075,2716.4,2715.5,3.7896]
[1740067533316,3.68184,2716.1,2715.5,7.47211]
[1740067533516,3.68168,2716.2,2715.6,3.68229]
[1740067533814,3.68184,2716.1,2715.5,3.7896]
[1740067533979,3.68184,2716.1,2715.5,7.47204]
[1740067534181,3.68177,2716.1,2715.6,3.6823]
[1740067534382,3.68197,2716.0,2715.5,0.7896]
[1740067534595,0.0075,2715.9,2715.2,0.7864]
[1740067534795,3.68265,2715.5,2715.2,0.7864]
[1740067535015,3.68245,2715.6,2715.2,0.7864]
[1740067535217,3.68222,2715.8,2715.2,0.7864]
[1740067535423,0.7804,2716.3,2715.3,3.68283]
[1740067535640,3.68188,2716.0,2715.4,3.68262]
[1740067535918,3.68232,2715.7,2715.2,0.7864]
[1740067536223,3.68269,2715.5,2715.2,0.7864]
[1740067536428,3.68296,2715.2,2715.1,0.72518492]
[1740067536625,3.68305,2715.2,2714.9,0.7948]
[1740067537524,3.68299,2715.2,2714.9,0.7948]
[1740067537836,0.0075,2715.5,2714.9,0.7948]
[1740067538000,7.36555,2715.4,2714.9,5.2240077]
[1740067538388,3.68298,2715.2,2714.9,1.5406377]
[1740067539119,3.68277,2715.4,2714.9,1.5406377]
[1740067539289,3.68277,2715.4,2714.9,4.5406377]
[1740067539489,3.68291,2715.3,2714.9,4.5406377]
[1740067539685,3.68207,2715.9,2715.0,0.82240477]
[1740067539921,3.68225,2715.8,2715.2,4.50106]
[1740067540224,3.6823,2715.7,2715.3,3.68283]
[1740067540517,3.6823,2715.7,2715.2,0.8182]
[1740067540725,3.6823,2715.7,2715.2,4.50109]
[1740067540885,7.36469,2715.7,2715.2,0.8182]
[1740067541219,3.6823,2715.7,2715.2,0.8182]
[1740067541528,3.6825,2715.6,2715.2,0.8182]
[1740067541719,3.68271,2715.4,2715.2,0.8182]
[1740067541935,3.68242,2715.6,2715.2,0.8182]
[1740067542343,3.6827,2715.4,2715.2,0.8182]
[1740067543828,3.68252,2715.6,2715.2,0.8182]
[1740067544028,3.68265,2715.5,2715.2,0.8182]
[1740067544741,3.68238,2715.7,2715.2,4.50115]
[1740067544939,3.68259,2715.5,2715.2,0.8182]
[1740067545670,3.68238,2715.7,2715.2,4.50108]
[1740067545834,3.68238,2715.7,2715.2,0.8182]
[1740067546037,3.6826,2715.5,2715.2,0.8182]
[1740067546345,3.68244,2715.6,2715.2,0.8182]
[1740067546938,3.68223,2715.8,2715.2,0.8182]
[1740067547156,3.68249,2715.6,2715.2,0.8182]
[1740067547309,3.68252,2715.6,2715.2,0.8182]
[1740067547744,0.8075,2716.1,2715.2,0.8182]
[1740067547909,0.8075,2716.1,2715.3,3.68276]
[1740067547910,3.68225,2715.8,2715.3,3.68276]
[1740067548119,3.68225,2715.8,2715.4,0.75201887]
[1740067548938,0.0075,2715.6,2714.7,4.50613]
[1740067549267,3.68278,2715.4,2714.8,6.68339]
[1740067549479,3.68256,2715.5,2715.0,6.68323]
[1740067549618,3.68276,2715.4,2715.0,3.0]
[1740067549819,3.68276,2715.4,2715.0,3.72952542]
[1740067550128,0.8075,2716.1,2715.1,3.6831]
[1740067550129,3.68242,2715.7,2715.1,3.6831]
[1740067550333,0.0075,2715.9,2715.2,0.8261]
[1740067550552,3.68264,2715.5,2715.2,0.8261]
[1740067551321,3.68279,2715.4,2715.2,0.8261]
[1740067551522,7.3656,2715.4,2715.2,0.8261]
[1740067551844,3.68279,2715.4,2715.2,0.8261]
[1740067552026,0.0075,2715.9,2715.2,0.8261]
[1740067552224,3.68267,2715.5,2715.2,0.8261]
[1740067552424,3.68276,2715.4,2715.2,0.8261]
[1740067552825,3.68267,2715.5,2715.2,0.8261]
[1740067553044,3.6827,2715.4,2715.0,3.72952542]
[1740067553235,3.6827,2715.4,2715.0,1.92191796]
[1740067553435,3.6827,2715.4,2715.0,0.72952542]
[1740067553853,3.68245,2715.6,2715.1,3.68304]
[1740067554053,3.68257,2715.5,2715.1,3.68304]
[1740067554421,3.68222,2715.8,2715.0,0.72952542]
[1740067554628,3.68153,2716.3,2715.5,0.8117]
[1740067554825,3.68107,2716.6,2715.6,3.68235]
[1740067555034,3.6819,2716.0,2715.4,6.6826]
[1740067555257,3.68134,2716.4,2715.0,8.35632795]
[1740067555258,3.68236,2715.7,2715.1,0.8117]
[1740067555456,3.68236,2715.7,2715.1,3.8117]
[1740067555824,3.6823,2715.7,2715.1,3.8117]
[1740067556154,3.68257,2715.5,2715.1,0.8117]
[1740067556354,7.36472,2715.7,2715.1,0.8117]
[1740067556555,3.68243,2715.6,2715.1,1.63414554]
[1740067556853,3.68188,2716.1,2715.4,4.47839]
[1740067557157,3.68183,2716.1,2715.5,3.0]
[1740067557361,3.68157,2716.3,2715.5,3.0]
[1740067557559,3.68096,2716.7,2715.8,3.68206]
[1740067557739,3.68154,2716.3,2715.7,3.0]
[1740067557940,3.68162,2716.2,2715.6,0.7672]
[1740067558234,3.68198,2716.0,2715.6,0.7672]
[1740067558439,3.68187,2716.1,2715.6,0.7672]
[1740067558756,3.68171,2716.2,2715.6,0.7672]
[1740067559058,3.68148,2716.3,2715.7,0.72549365]
[1740067559257,3.68176,2716.1,2715.7,0.72549365]
[1740067559764,3.68839,2716.8,2716.2,3.6816]
[1740067559949,0.7907,2717.2,2716.2,0.7952]
[1740067560150,3.68074,2716.9,2716.2,0.7952]
[1740067560358,3.68116,2716.6,2716.2,0.7952]
[1740067560572,3.68147,2716.3,2716.2,0.7952]
[1740067560771,3.68113,2716.6,2716.2,0.7952]
[1740067561584,3.68066,2716.9,2716.2,0.7952]
[1740067561731,3.68147,2716.4,2716.2,0.7952]
[1740067561931,3.68147,2716.4,2716.1,0.292]
[1740067561932,3.68147,2716.3,2715.7,0.72549365]
[1740067562131,3.68176,2716.1,2715.8,0.7756]
[1740067562531,0.0075,2716.3,2715.7,1.01749365]
[1740067562779,3.68181,2716.1,2715.7,0.72549365]
[1740067562979,3.68204,2715.9,2715.5,0.7671]
[1740067563381,3.68183,2716.1,2715.5,0.7671]
[1740067563782,3.68182,2716.1,2715.5,0.7671]
[1740067563983,4.48998,2716.6,2715.6,0.73515314]
[1740067564186,3.68095,2716.7,2715.7,0.8003]
[1740067564348,0.8264,2716.9,2715.7,3.8003]
[1740067564349,4.50711,2716.9,2715.7,3.8003]
[1740067564551,0.0075,2716.7,2715.7,0.8003]
[1740067564751,3.68851,2716.7,2715.7,4.48247]
[1740067565091,3.68042,2717.1,2716.0,3.68186]
[1740067565256,3.68092,2716.8,2716.0,0.8271]
[1740067566135,3.68061,2717.0,2716.2,0.799]
[1740067566136,3.68076,2716.9,2716.2,0.799]
[1740067566338,3.68061,2717.0,2716.2,0.799]
[1740067566567,3.68069,2716.9,2716.3,0.4349]
[1740067566768,3.6804,2717.1,2716.3,0.4349]
[1740067566981,3.67994,2717.5,2716.6,0.72600981]
[1740067567176,0.98986795,2717.5,2716.7,0.8066]
[1740067567392,2.53156949,2717.6,2716.7,0.8066]
[1740067567393,3.6798,2717.6,2716.7,3.8066]
[1740067567595,3.67919,2718.0,2717.0,3.8206]
[1740067567791,3.67919,2718.0,2717.1,0.8206]
[1740067567956,3.67901,2718.2,2717.1,0.8206]
[1740067568159,3.67912,2718.1,2717.3,0.7669]
[1740067568388,3.67929,2718.0,2717.3,0.7669]
[1740067568611,4.048381,2718.2,2717.3,0.7669]
[1740067568812,3.67915,2718.1,2717.3,0.7669]
[1740067569332,4.048381,2718.2,2717.6,0.74951431]
[1740067569677,3.67919,2718.0,2717.6,0.74951431]
[1740067570102,3.68607,2718.5,2717.7,0.829]
[1740067570309,0.451207,2718.5,2717.7,0.829]
[1740067570481,3.67837,2718.6,2717.7,4.50849]
[1740067570684,3.67839,2718.6,2717.9,0.55]
[1740067570890,3.67866,2718.4,2717.8,0.829]
[1740067571084,3.67883,2718.3,2717.8,0.829]
[1740067571297,3.67866,2718.4,2717.8,1.28685143]
[1740067571696,7.3574,2718.4,2717.8,1.28685143]
[1740067571901,0.0075,2718.3,2717.8,0.829]
[1740067572216,3.67931,2717.9,2717.8,0.829]
[1740067573015,3.68629,2718.3,2717.8,0.829]
[1740067573183,3.67912,2718.1,2717.8,0.829]
[1740067573586,3.67925,2718.0,2717.8,0.829]
[1740067573794,0.0075,2718.3,2717.8,0.829]
[1740067573995,3.67914,2718.1,2717.8,0.829]
[1740067574316,3.67907,2718.1,2717.8,0.829]
[1740067574511,3.67899,2718.2,2717.8,0.829]
[1740067574680,0.367899,2718.2,2717.6,0.74951431]
[1740067574882,3.67939,2717.9,2717.6,0.74951431]
[1740067575398,3.67958,2717.7,2717.4,0.7959]
[1740067575591,3.67939,2717.9,2717.4,0.7959]
[1740067575811,0.0075,2719.0,2717.6,4.75692253]
[1740067576134,3.67873,2718.4,2717.8,0.8071]
[1740067576337,0.49131411,2719.5,2718.3,3.0]
[1740067576512,0.7886,2720.1,2719.2,0.8071]
[1740067576718,3.67683,2719.8,2719.3,0.294]
[1740067577530,0.7886,2720.1,2719.3,0.294]
[1740067577740,2.59915457,2721.1,2720.0,1.07810902]
[1740067577902,3.67469,2721.4,2720.9,3.94362253]
[1740067578100,3.67482,2721.3,2720.9,3.94362253]
[1740067578301,3.67525,2720.9,2720.8,0.74698395]
[1740067578534,3.67616,2720.3,2719.8,0.8023]
[1740067578709,3.67582,2720.5,2719.9,3.71920873]
[1740067579035,3.67558,2720.7,2719.9,3.71920873]
[1740067579211,3.67526,2720.9,2720.1,3.94362253]
[1740067579402,3.67526,2720.9,2720.2,0.39436225]
[1740067579605,3.67569,2720.6,2720.2,0.39436225]
[1740067580030,3.67606,2720.3,2719.9,3.71920873]
[1740067580228,3.6764,2720.1,2719.8,0.8023]
[1740067580402,3.67608,2720.3,2719.8,0.8023]
[1740067580599,3.67636,2720.1,2719.8,0.8023]
[1740067581031,3.67656,2720.0,2719.8,0.8023]
[1740067582136,3.6766,2719.9,2719.8,0.8023]
[1740067582336,3.6766,2719.9,2719.4,0.827]
[1740067582337,3.67687,2719.7,2719.4,0.827]
[1740067582628,3.67687,2719.7,2719.4,1.37457325]
[1740067583237,3.67687,2719.7,2719.6,0.72391693]
[1740067583836,3.6766,2719.9,2719.6,0.72391693]
[1740067583837,3.67676,2719.8,2719.6,0.72391693]
[1740067584158,3.67687,2719.7,2719.6,0.72391693]
[1740067584326,3.67649,2720.0,2719.6,3.93376595]
[1740067584528,0.1828514,2722.4,2720.0,0.7548]
[1740067584853,3.8246246,2722.5,2721.1,0.7548]
[1740067585039,4.49362253,2722.1,2720.6,0.7827]
[1740067585240,3.67532,2720.9,2720.6,0.7827]
[1740067585447,3.67523,2721.0,2720.6,0.7827]
[1740067585657,3.6744,2721.6,2720.3,0.303]
[1740067585658,3.0075,2721.5,2720.3,0.303]
[1740067585817,3.67606,2720.3,2720.2,2.5034218]
[1740067586324,3.67552,2720.8,2720.2,2.5034218]
[1740067586518,3.67555,2720.7,2720.2,2.5034218]
[1740067586947,3.67565,2720.6,2720.3,1.72065855]
[1740067587361,3.67555,2720.7,2720.3,1.72065855]
[1740067587555,3.67566,2720.6,2720.3,1.72065855]
[1740067588085,3.67539,2720.8,2720.3,1.72065855]
[1740067588428,3.67513,2721.0,2720.3,4.72065855]
[1740067588628,3.67536,2720.9,2720.3,4.72065855]
[1740067588944,3.675,2721.1,2720.3,4.72065855]
[1740067589151,3.67424,2721.7,2720.5,3.94362253]
[1740067589152,3.67468,2721.4,2720.5,3.94362253]
[1740067589357,3.67482,2721.3,2720.5,3.94362253]
[1740067589550,0.8164,2721.7,2720.6,0.7696]
[1740067589551,0.0075,2721.5,2720.6,0.7696]
[1740067589833,3.67479,2721.3,2720.6,0.7696]
[1740067590050,3.67479,2721.3,2720.8,0.73779602]
[1740067590631,3.67479,2721.3,2720.6,0.7696]
[1740067591188,3.67442,2721.6,2720.8,3.94362253]
[1740067591357,3.67463,2721.4,2720.8,3.94362253]
[1740067591553,3.67474,2721.3,2720.8,3.94362253]
[1740067591757,0.368192,2721.6,2720.6,4.52270849]
[1740067591981,3.67488,2721.2,2720.6,4.52270849]
[1740067592386,3.67481,2721.3,2720.6,4.52270849]
[1740067593502,3.68153,2721.8,2720.6,1.52270849]
[1740067593503,7.35007,2721.1,2720.6,1.52270849]
[1740067593699,3.67438,2721.6,2720.7,3.67547]
[1740067593868,3.67461,2721.4,2720.6,4.47310849]
[1740067594072,3.67444,2721.5,2720.6,4.47310849]
[1740067594298,0.367438,2721.6,2720.6,1.47310849]
[1740067594502,3.67494,2721.2,2720.6,1.47310849]
[1740067594904,3.67526,2720.9,2720.6,1.47310849]
[1740067595072,0.0075,2721.8,2720.6,1.47310849]
[1740067595275,3.6748,2721.3,2720.6,4.47310849]
[1740067595472,3.6748,2721.3,2720.6,1.47310849]
[1740067595873,0.0075,2721.8,2720.6,1.47310849]
[1740067596196,0.74079848,2721.8,2720.6,1.47310849]
[1740067596402,3.67493,2721.2,2720.6,1.47310849]
[1740067596703,3.67475,2721.3,2720.6,1.47310849]
[1740067596902,3.67494,2721.2,2720.6,1.47310849]
[1740067597091,3.67513,2721.0,2720.6,1.47310849]
[1740067597493,3.67494,2721.2,2720.6,1.47310849]
[1740067597692,3.67406,2721.8,2720.7,3.67552]
[1740067597910,3.67451,2721.5,2720.7,3.0]
[1740067598208,3.67464,2721.4,2720.7,3.0]
[1740067598377,3.67451,2721.5,2720.7,3.0]
[1740067598575,3.67458,2721.4,2720.7,3.0]
[1740067598774,3.67451,2721.5,2720.7,4.25979003]
[1740067599003,3.67481,2721.3,2720.7,4.25979003]
[1740067599185,3.67478,2721.3,2720.7,4.25979003]
[1740067599385,3.67422,2721.7,2720.7,1.25979003]
[1740067599626,3.67458,2721.4,2721.1,0.74097515]
[1740067599924,3.6751,2721.1,2720.6,0.72]
[1740067600092,3.67523,2721.0,2720.6,0.72]
[1740067600405,3.67508,2721.1,2720.7,0.73449861]
[1740067601208,3.67459,2721.4,2720.7,0.73449861]
[1740067601505,3.67482,2721.3,2720.7,1.54752547]
[1740067601710,0.44936225,2722.0,2720.9,3.94362253]
[1740067601924,3.67494,2721.2,2720.7,1.54752547]
[1740067602085,3.67524,2721.0,2720.7,0.73449861]
[1740067602292,3.67524,2721.0,2720.6,0.72]
[1740067602480,7.35048,2721.0,2720.6,0.72]
[1740067602679,3.67524,2721.0,2720.6,0.72]
[1740067602926,3.67429,2721.7,2720.9,3.0]
[1740067603210,3.67403,2721.9,2721.2,3.0]
[1740067603425,3.67413,2721.8,2721.0,0.749751]
[1740067603779,3.67465,2721.4,2720.9,0.73397533]
[1740067604024,3.67473,2721.3,2720.9,0.73397533]
[1740067604311,3.67465,2721.4,2720.9,0.73397533]
[1740067604488,3.67499,2721.1,2720.9,0.73397533]
[1740067604891,3.67511,2721.0,2720.9,0.73397533]
[1740067605091,3.67498,2721.1,2720.8,0.8222]
[1740067605296,3.67515,2721.0,2720.8,0.8222]
[1740067605906,3.67525,2720.9,2720.8,0.8222]
[1740067606104,3.67493,2721.2,2720.8,0.8222]
[1740067606413,3.67464,2721.4,2720.8,0.8222]
[1740067606585,7.34984,2721.2,2720.8,1.55094999]
[1740067606786,3.67486,2721.2,2720.8,1.55094999]
[1740067607218,3.67512,2721.0,2720.8,1.55094999]
[1740067609319,3.6752,2721.0,2720.8,0.8222]
[1740067609518,3.67519,2721.0,2720.8,0.8222]
[1740067609837,3.67499,2721.1,2720.8,0.8222]
[1740067610122,3.67504,2721.1,2720.8,0.8222]
[1740067610413,3.67521,2721.0,2720.8,0.8222]
[1740067610586,3.67525,2720.9,2720.8,0.8222]
[1740067610786,3.67538,2720.8,2720.7,0.74470159]
[1740067610983,4.50407168,2722.1,2720.7,0.74470159]
[1740067611196,7.34956,2721.3,2720.7,0.74470159]
[1740067611403,3.67491,2721.2,2720.7,0.74470159]
[1740067611609,3.67486,2721.2,2720.7,0.74470159]
[1740067612122,0.0075,2721.7,2720.8,0.7848]
[1740067612309,0.55,2722.3,2721.2,3.94362253]
[1740067612486,4.22337,2722.3,2721.3,3.7848]
[1740067612816,4.22337,2722.3,2721.4,3.0]
[1740067613015,3.67366,2722.1,2721.3,7.4594]
[1740067613219,0.55,2722.3,2721.5,4.49362253]
[1740067613394,0.55,2722.3,2721.8,4.45939]
[1740067613595,0.55,2722.3,2721.9,3.0]
[1740067613805,0.55,2722.3,2722.2,7.45889]
[1740067614136,0.55,2722.3,2722.2,5.32271425]
[1740067614617,0.55,2722.3,2722.2,0.7854]
[1740067615389,4.22336,2722.3,2722.2,0.7854]
[1740067615923,0.54,2722.3,2722.2,0.7854]
[1740067617907,4.21336,2722.3,2722.2,0.7854]
[1740067618109,0.54,2722.3,2722.2,0.7854]
[1740067618417,0.1514846,2722.5,2722.2,0.7854]
[1740067618620,0.1514846,2722.5,2722.3,3.0]
[1740067618920,0.1514846,2722.5,2722.3,1.14025725]
[1740067619124,0.1514846,2722.5,2722.3,3.0]
[1740067619323,0.1514846,2722.5,2722.2,3.7854]
[1740067619487,0.1514846,2722.5,2722.3,0.27006414]
[1740067620037,0.1514846,2722.5,2722.4,6.67322]
[1740067620249,0.1514846,2722.5,2722.4,8.04062]
[1740067620450,0.1514846,2722.5,2722.4,9.63337667]
[1740067620726,0.1514846,2722.5,2722.4,5.41015667]
[1740067620945,0.1514846,2722.5,2722.4,3.8174]
[1740067621626,0.1514846,2722.5,2722.4,4.53598268]
[1740067622123,0.1514846,2722.5,2722.4,1.53598268]
[1740067622624,0.1514846,2722.5,2722.4,8.75920268]
[1740067622795,0.1514846,2722.5,2722.4,5.08598268]
[1740067622995,0.1514846,2722.5,2722.4,6.3562792]
[1740067623198,0.27708014,2724.2,2722.7,0.8262]
[1740067623520,3.67222,2723.2,2722.8,0.8262]
[1740067623820,0.7545,2724.0,2722.8,0.8262]
[1740067624042,0.7545,2724.3,2723.3,0.7721]
[1740067624207,3.67021,2724.7,2723.9,3.67108]
[1740067624402,0.367021,2724.7,2724.0,4.73072253]
[1740067624586,3.66998,2724.9,2724.1,3.0]
[1740067624792,3.66994,2724.9,2724.1,3.0]
[1740067624994,3.67012,2724.8,2724.1,3.0]
[1740067625227,3.67012,2724.8,2724.2,1.70400841]
[1740067625408,0.1514846,2725.2,2724.2,1.70400841]
[1740067625610,3.67066,2724.3,2724.2,1.70400841]
[1740067626010,3.67029,2724.6,2724.2,1.70400841]
[1740067626215,3.66995,2724.9,2724.3,0.7695]
[1740067626528,3.67045,2724.5,2724.4,1.7180691]
[1740067627046,3.67173,2723.6,2723.4,0.795]
[1740067627355,3.67242,2723.0,2722.9,0.8005]
[1740067628423,3.67228,2723.1,2722.6,0.27610829]
[1740067628424,3.67257,2722.9,2722.6,0.8302]
[1740067628627,3.67282,2722.7,2722.6,0.8302]
[1740067628827,3.0075,2723.9,2722.6,0.8302]
[1740067629012,3.67227,2723.2,2722.6,0.8302]
[1740067629212,3.67194,2723.4,2722.6,0.8302]
[1740067629421,3.67161,2723.6,2722.6,1.58133953]
[1740067629728,3.67147,2723.7,2722.8,0.8261]
[1740067629891,0.7978,2724.9,2723.2,4.49362253]
[1740067630097,3.67107,2724.0,2723.4,0.8261]
[1740067630296,3.67091,2724.2,2723.4,0.8261]
[1740067630542,3.67172,2723.6,2723.4,0.8261]
[1740067630746,3.67143,2723.8,2723.4,0.8261]
[1740067630897,3.67143,2723.8,2723.4,1.56158007]
[1740067631326,3.67174,2723.5,2723.4,1.56158007]
[1740067631713,3.67149,2723.7,2723.4,1.56158007]
[1740067631917,3.67171,2723.6,2723.4,1.56158007]
[1740067632095,3.67149,2723.7,2723.4,1.56158007]
[1740067632299,3.67204,2723.3,2723.1,0.8287]
[1740067632604,3.67215,2723.2,2723.1,1.57366397]
[1740067632804,3.67215,2723.2,2723.1,0.8287]
[1740067633235,3.67204,2723.3,2723.1,0.8287]
[1740067633436,3.6723,2723.1,2722.8,0.8287]
[1740067633728,0.73438,2723.3,2722.8,0.8287]
[1740067633729,3.67206,2723.3,2722.8,0.8287]
[1740067633928,3.672,2723.4,2722.8,0.8287]
[1740067634130,3.67194,2723.4,2722.8,0.8287]
[1740067634448,3.67145,2723.8,2722.8,0.8287]
[1740067634611,0.0075,2724.2,2723.2,3.8287]
[1740067634803,3.67121,2723.9,2723.2,3.8287]
[1740067635130,3.67158,2723.7,2723.2,3.8287]
[1740067635435,0.0075,2724.2,2723.2,0.8287]
[1740067635631,0.0075,2724.1,2723.2,0.8287]
[1740067635861,7.34395,2723.4,2723.2,0.8287]
[1740067636015,3.67201,2723.3,2723.2,0.8287]
[1740067636538,3.67243,2723.0,2722.9,0.72866723]
[1740067636736,3.67255,2722.9,2722.8,0.299]
[1740067637235,3.67319,2722.5,2722.3,0.8044]
[1740067637404,3.67322,2722.4,2722.3,1.1034]
[1740067637801,3.67322,2722.4,2722.3,0.71910756]
[1740067638048,3.67387,2722.0,2721.8,1.1122]
[1740067638208,3.67364,2722.1,2721.8,1.1122]
[1740067638410,3.67341,2722.3,2721.8,1.1122]
[1740067638624,3.67349,2722.2,2721.8,1.1122]
[1740067639141,3.67361,2722.2,2721.9,0.72344618]
[1740067639507,3.67376,2722.0,2721.9,0.72344618]
[1740067639709,3.67361,2722.2,2721.8,1.1122]
[1740067640039,3.67306,2722.6,2721.8,1.86013363]
[1740067640241,3.67345,2722.3,2721.9,0.55342536]
[1740067640406,0.48014347,2722.9,2721.8,1.86013363]
[1740067640606,3.67306,2722.6,2721.9,0.55]
[1740067640832,3.67306,2722.6,2721.9,3.55]
[1740067641033,3.67324,2722.4,2721.9,0.55]
[1740067641274,3.67306,2722.6,2721.9,3.55]
[1740067641558,3.67336,2722.4,2722.0,0.90840636]
[1740067642042,3.67337,2722.3,2722.0,0.90840636]
[1740067642342,3.67362,2722.2,2721.9,0.299]
[1740067643025,3.67376,2722.0,2721.9,0.299]
[1740067643626,3.6739,2721.9,2721.8,0.74793363]
[1740067643821,3.67361,2722.2,2721.8,0.74793363]
[1740067644025,3.6739,2721.9,2721.8,0.74793363]
[1740067644344,3.6738,2722.0,2721.5,0.8187]
[1740067644658,7.3482,2721.8,2721.5,0.8187]
[1740067645243,3.67406,2721.8,2721.5,0.8187]
[1740067645538,3.6743,2721.6,2721.0,1.3592]
[1740067645744,3.6743,2721.6,2721.1,0.856442]
[1740067645938,3.67406,2721.8,2721.1,4.531392]
[1740067646345,3.67385,2722.0,2721.5,0.74717271]
[1740067646544,3.67384,2722.0,2721.5,0.74717271]
[1740067646751,3.67408,2721.8,2721.5,0.74717271]
[1740067647128,3.67384,2722.0,2721.5,0.74717271]
[1740067647327,3.67347,2722.3,2721.6,3.8171]
[1740067647540,3.6733,2722.4,2721.6,5.00840527]
[1740067647711,3.67356,2722.2,2721.6,5.00840527]
[1740067647915,3.67363,2722.1,2721.6,5.00840527]
[1740067648213,3.67309,2722.5,2721.6,5.00840527]
[1740067648419,3.6739,2722.0,2721.6,0.8171]
[1740067648826,7.34818,2721.8,2721.6,0.8171]
[1740067649032,3.67322,2722.4,2721.5,0.74717271]
[1740067649227,3.67416,2721.8,2721.5,0.74717271]
[1740067649450,3.67412,2721.8,2721.5,0.74717271]
[1740067649626,4.49079,2722.5,2721.5,0.74717271]
[1740067649824,3.67377,2722.0,2721.5,0.74717271]
[1740067650269,3.67391,2721.9,2721.5,0.74717271]
[1740067650413,3.67377,2722.0,2721.5,0.74717271]
[1740067650750,3.67397,2721.9,2721.5,0.74717271]
[1740067650971,3.67403,2721.8,2721.5,0.74717271]
[1740067651155,3.67408,2721.8,2721.5,0.74717271]
[1740067651320,3.67418,2721.7,2721.5,0.74717271]
[1740067651680,3.6743,2721.6,2721.5,0.74717271]
[1740067651884,3.6743,2721.6,2721.3,0.7516]
[1740067652171,0.7649,2722.3,2721.4,0.7514117]
[1740067652371,3.6739,2721.9,2721.4,3.7514117]
[1740067652519,3.67406,2721.8,2721.4,0.7514117]
[1740067652720,3.67379,2722.0,2721.4,0.7514117]
[1740067652920,3.6739,2721.9,2721.4,0.7514117]
[1740067653150,3.67409,2721.8,2721.4,0.7514117]
[1740067653549,3.67403,2721.8,2721.4,0.7514117]
[1740067653848,3.67429,2721.7,2721.4,0.7514117]
[1740067654219,3.67444,2721.5,2721.4,0.7514117]
[1740067654636,3.67478,2721.3,2721.0,1.04779869]
[1740067655032,3.67476,2721.3,2721.0,1.04779869]
[1740067655634,3.6748,2721.3,2721.0,1.04779869]
[1740067655860,0.7649,2721.7,2721.0,1.04779869]
[1740067656156,3.67466,2721.4,2721.2,0.73905126]
[1740067656671,3.6746,2721.4,2721.2,0.73905126]
[1740067657239,3.67471,2721.3,2721.2,0.73905126]
[1740067657756,3.67467,2721.4,2721.2,0.73905126]
[1740067658262,3.67471,2721.3,2721.2,0.73905126]
[1740067658759,3.67438,2721.6,2721.2,0.73905126]
[1740067659231,1.21080652,2722.0,2721.2,0.73905126]
[1740067659426,4.88460652,2722.0,2721.2,0.73905126]
[1740067659649,3.67441,2721.6,2721.2,0.73905126]
[1740067659855,1.21080652,2722.0,2721.2,0.73905126]
[1740067660051,3.67438,2721.6,2721.2,0.73905126]
[1740067660359,3.67426,2721.7,2721.2,0.73905126]
[1740067660558,3.67439,2721.6,2721.2,0.73905126]
[1740067661025,3.67453,2721.5,2721.2,0.73905126]
[1740067661229,3.67439,2721.6,2721.2,0.73905126]
[1740067661230,3.67466,2721.4,2721.2,0.73905126]
[1740067661425,3.67471,2721.3,2721.2,0.73905126]
[1740067662164,3.62826,2721.4,2721.2,0.73905126]
[1740067662377,3.67471,2721.3,2721.2,0.73905126]
[1740067662746,3.67498,2721.1,2720.7,0.7952]
[1740067662957,3.6752,2721.0,2720.7,0.7952]
[1740067663162,3.67514,2721.0,2720.7,0.7952]
[1740067663758,3.67538,2720.8,2720.7,0.27453898]
[1740067663960,3.67538,2720.8,2720.7,0.9975919]
[1740067664474,3.67538,2720.8,2720.7,0.72305292]
[1740067665072,0.7551,2721.4,2720.7,0.72305292]
[1740067665073,3.67504,2721.1,2720.7,0.72305292]